bitfinex/quotes_BTCUSD_20251208
["timestamp","ask_amount","ask_price","bid_price","bid_amount"]
[1765221842042,0.27149747,90083.0,90082.0,0.00318136]
[1765221842170,0.29369747,90083.0,90082.0,0.00318136]
[1765221842567,0.61669747,90083.0,90082.0,0.00318136]
[1765221842769,0.22204705,90071.0,90070.0,0.0002]
[1765221842993,0.22204705,90071.0,90070.0,0.00031634]
[1765221842994,0.31419705,90071.0,90070.0,0.00031634]
[1765221843402,0.31419705,90071.0,90070.0,0.00067563]
[1765221843625,0.41444866,90071.0,90070.0,0.00067563]
[1765221843962,0.41644866,90071.0,90070.0,0.00067563]
[1765221844163,0.42773043,90071.0,90070.0,0.00067563]
[1765221844752,0.42873043,90071.0,90070.0,0.00167563]
[1765221844907,0.40742192,90071.0,90070.0,0.00167563]
[1765221845300,0.42962192,90071.0,90070.0,0.00167563]
[1765221845907,0.32937031,90071.0,90070.0,0.00167563]
[1765221852328,0.2220717,90061.0,90060.0,0.0002]
[1765221852534,0.5963017,90061.0,90060.0,0.0002]
[1765221852662,0.5203417,90061.0,90060.0,0.0002]
[1765221852863,0.5203417,90061.0,90060.0,0.00049947]
[1765221853096,0.09287,90061.0,90060.0,0.00049947]
[1765221853897,0.09387,90061.0,90060.0,0.00249947]
[1765221854220,0.07627,90061.0,90060.0,0.00249947]
[1765221854419,0.07267,90061.0,90060.0,0.00249947]
[1765221855261,0.05507,90061.0,90060.0,0.00249947]
[1765221855461,0.07267,90061.0,90060.0,0.00249947]
[1765221856206,0.05507,90061.0,90060.0,0.22457364]
[1765221856770,0.03205,90061.0,90060.0,0.22529502]
[1765221857113,0.07267,90061.0,90060.0,0.22529502]
[1765221857448,0.04863,90061.0,90060.0,0.22529502]
[1765221857650,0.07267,90061.0,90060.0,0.22529502]
[1765221858438,0.09487,90061.0,90060.0,0.22529502]
[1765221858754,0.09487,90061.0,90060.0,0.00322085]
[1765221858912,0.09487,90061.0,90060.0,0.22529502]
[1765221859638,0.07267,90061.0,90060.0,0.22529502]
[1765221859826,0.07267,90061.0,90060.0,0.00322085]
[1765221860017,0.07267,90061.0,90060.0,0.22529502]
[1765221860645,0.2947417,90061.0,90060.0,0.00322085]
[1765221860835,0.07267,90061.0,90060.0,0.00249947]
[1765221861590,0.07267,90061.0,90060.0,0.22457364]
[1765221861786,0.07267,90061.0,90060.0,0.00249947]
[1765221862210,0.2947417,90061.0,90060.0,0.00249947]
[1765221862849,0.07267,90061.0,90060.0,0.22457364]
[1765221863541,0.05507,90061.0,90060.0,0.22457364]
[1765221863840,0.07267,90061.0,90060.0,0.22457364]
[1765221864039,0.05507,90061.0,90060.0,0.22457364]
[1765221864197,0.07267,90061.0,90060.0,0.22457364]
[1765221865063,0.05507,90061.0,90060.0,0.22457364]
[1765221865266,0.07267,90061.0,90060.0,0.22457364]
[1765221867517,0.002,90061.0,90060.0,0.22529502]
[1765221867697,0.002,90061.0,90060.0,0.24100502]
[1765221869167,0.002,90061.0,90060.0,0.26381502]
[1765221869368,0.001,90061.0,90060.0,0.24100502]
[1765221869569,0.001,90061.0,90060.0,0.22529502]
[1765221869771,0.0176,90064.0,90063.0,0.22206677]
[1765221869957,0.0176,90064.0,90061.0,0.01110358]
[1765221869958,0.02404,90063.0,90061.0,0.01110358]
[1765221870158,0.02404,90063.0,90060.0,0.00092138]
[1765221870159,0.2230717,90061.0,90060.0,0.0032]
[1765221870358,0.2618517,90061.0,90060.0,0.0032]
[1765221870730,0.2858917,90061.0,90060.0,0.0032]
[1765221870938,0.28578319,90061.0,90060.0,0.0002]
[1765221871357,0.2961023,90061.0,90060.0,0.0002]
[1765221871566,0.72535556,90061.0,90060.0,0.0002]
[1765221871744,0.74913195,90061.0,90060.0,0.0002]
[1765221872130,0.74913195,90061.0,90050.0,0.0002]
[1765221872131,0.24429636,90051.0,90050.0,0.0002]
[1765221872332,0.61268696,90051.0,90050.0,0.0002]
[1765221872552,0.73027348,90051.0,90050.0,0.0002]
[1765221872805,0.66050335,90051.0,90050.0,0.0002]
[1765221873665,0.66250335,90051.0,90050.0,0.0012]
[1765221878604,0.69224169,90051.0,90050.0,0.0012]
[1765221878863,0.69024169,90051.0,90050.0,0.00079902]
[1765221879091,0.79872097,90051.0,90050.0,0.00079902]
[1765221879322,0.77798263,90051.0,90050.0,0.00179902]
[1765221882312,0.62970335,90051.0,90050.0,0.00179902]
[1765221882487,0.66950335,90051.0,90050.0,0.00179902]
[1765221884089,0.64730335,90051.0,90050.0,0.00179902]
[1765221884316,0.66950335,90051.0,90050.0,0.00179902]
[1765221884899,0.64572696,90051.0,90050.0,0.00179902]
[1765221885338,0.73979429,90051.0,90050.0,0.00179902]
[1765221885547,0.64572696,90051.0,90050.0,0.00179902]
[1765221885912,0.3838306,90051.0,90050.0,0.00179902]
[1765221886132,0.62352696,90051.0,90050.0,0.00179902]
[1765221886340,0.4014306,90051.0,90050.0,0.00179902]
[1765221886565,0.62352696,90051.0,90050.0,0.00179902]
[1765221887097,0.63426075,90051.0,90050.0,0.00179902]
[1765221887297,0.52064367,90051.0,90050.0,0.00179902]
[1765221887511,0.52064367,90051.0,90050.0,0.22389785]
[1765221887754,0.01973379,90051.0,90050.0,0.22389785]
[1765221887958,0.0266,90051.0,90050.0,0.22461923]
[1765221888328,0.06642,90051.0,90050.0,0.22461923]
[1765221888494,0.03982,90051.0,90050.0,0.22361923]
[1765221888696,0.05942,90051.0,90050.0,0.22461923]
[1765221888939,0.06242,90051.0,90050.0,0.22461923]
[1765221889131,0.06242,90051.0,90050.0,0.22361923]
[1765221889132,0.06042,90051.0,90050.0,0.22361923]
[1765221889546,0.06242,90051.0,90050.0,0.0025204]
[1765221889868,0.06242,90051.0,90050.0,0.22461923]
[1765221891830,0.0226,90051.0,90050.0,0.22461923]
[1765221892034,0.005,90051.0,90050.0,0.22461923]
[1765221892181,0.0226,90051.0,90050.0,0.22461923]
[1765221892599,0.02024,90051.0,90050.0,0.22461923]
[1765221892815,0.03784,90051.0,90050.0,0.22461923]
[1765221893004,0.06242,90051.0,90050.0,0.22461923]
[1765221893203,0.0226,90051.0,90050.0,0.22461923]
[1765221893408,0.005,90051.0,90050.0,0.26409923]
[1765221893650,0.005,90051.0,90050.0,0.24073923]
[1765221893790,0.005,90051.0,90050.0,0.22461923]
[1765221894205,0.004,90051.0,90050.0,0.22461923]
[1765221894598,0.01154,90056.0,90055.0,0.2220865]
[1765221894902,0.01154,90056.0,90055.0,0.22280788]
[1765221895155,0.05136,90056.0,90055.0,0.22280788]
[1765221895645,0.02678,90056.0,90055.0,0.22280788]
[1765221895855,0.0176,90059.0,90055.0,0.22280788]
[1765221896050,0.01245,90068.0,90055.0,0.22280788]
[1765221896051,0.01245,90068.0,90067.0,0.22205691]
[1765221896280,0.04529,90068.0,90067.0,0.22205691]
[1765221896457,0.03330284,90067.0,90063.0,0.01110333]
[1765221896711,0.04678,90067.0,90065.0,0.22206088]
[1765221896921,0.02458,90066.0,90064.0,0.23316651]
[1765221897053,0.01524,90065.0,90059.0,0.01110383]
[1765221897258,0.01110333,90063.0,90059.0,0.01110383]
[1765221897491,0.00089149,90063.0,90061.0,0.01110358]
[1765221897822,0.02458,90062.0,90061.0,0.01110358]
[1765221898058,0.03982,90062.0,90061.0,0.01110358]
[1765221898298,0.03982,90062.0,90061.0,0.23317528]
[1765221898661,0.03982,90062.0,90061.0,0.001]
[1765221898989,0.03982,90062.0,90061.0,0.2220717]
[1765221899511,0.04182,90062.0,90061.0,0.2230717]
[1765221900261,0.04182,90062.0,90061.0,0.001]
[1765221900476,0.31890906,90062.0,90061.0,0.001]
[1765221900675,0.002,90062.0,90061.0,0.22334124]
[1765221900881,0.0196,90062.0,90061.0,0.22406262]
[1765221901082,0.0196,90062.0,90061.0,0.23209262]
[1765221901923,0.0196,90062.0,90061.0,0.27184262]
[1765221901924,0.002,90062.0,90061.0,0.27184262]
[1765221902121,0.002,90062.0,90061.0,0.67956561]
[1765221902682,0.0176,90077.0,90076.0,0.22203472]
[1765221902966,0.2219591,90107.0,90076.0,0.22203472]
[1765221902967,0.01228,90108.0,90107.0,0.23305624]
[1765221903178,0.01228,90108.0,90100.0,0.01109877]
[1765221903179,0.02139025,90119.0,90114.0,0.01109705]
[1765221903382,0.02855,90115.0,90114.0,0.23303814]
[1765221903986,0.02855,90115.0,90113.0,0.01109717]
[1765221904141,0.02855,90115.0,90113.0,0.23304017]
[1765221904318,0.02855,90115.0,90113.0,0.23304056]
[1765221904520,0.006,90115.0,90114.0,0.001]
[1765221904839,0.006,90115.0,90114.0,0.01738138]
[1765221904840,0.0196,90115.0,90114.0,0.01738138]
[1765221905156,0.0256,90115.0,90114.0,0.01738138]
[1765221905321,0.0196,90115.0,90114.0,0.01738138]
[1765221905724,0.0236,90115.0,90114.0,0.01838138]
[1765221905964,0.0216,90115.0,90114.0,0.01838138]
[1765221906386,0.0236,90115.0,90114.0,0.01838138]
[1765221906721,0.0216,90115.0,90114.0,0.01838138]
[1765221906950,0.0216,90115.0,90113.0,0.23304056]
[1765221906951,0.0585,90115.0,90113.0,0.23303942]
[1765221907145,0.0176,90115.0,90114.0,0.001]
[1765221907485,0.0186,90115.0,90114.0,0.002]
[1765221907858,0.0186,90115.0,90114.0,0.001]
[1765221908089,0.0186,90115.0,90113.0,0.23304011]
[1765221908090,0.0176,90115.0,90113.0,0.23304011]
[1765221908618,0.0216,90115.0,90114.0,0.001]
[1765221909155,0.0216,90115.0,90114.0,0.01766]
[1765221909351,0.0216,90115.0,90114.0,0.001]
[1765221909755,0.0216,90115.0,90113.0,0.23304011]
[1765221909960,0.0176,90115.0,90113.0,0.23304011]
[1765221910197,0.0216,90115.0,90113.0,0.23404011]
[1765221910380,0.0216,90115.0,90114.0,0.00851]
[1765221910983,0.0176,90115.0,90114.0,0.00851]
[1765221911424,0.0196,90115.0,90114.0,0.00851]
[1765221911594,0.0176,90115.0,90114.0,0.00851]
[1765221912819,0.0176,90115.0,90114.0,0.00951]
[1765221913125,0.0196,90115.0,90114.0,0.01051]
[1765221913711,0.0196,90115.0,90114.0,0.22394109]
[1765221914933,0.03559,90115.0,90114.0,0.002]
[1765221915291,0.11519141,90115.0,90114.0,0.002]
[1765221915507,0.08148149,90115.0,90114.0,0.002]
[1765221915720,0.02049149,90115.0,90114.0,0.002]
[1765221915908,0.05928149,90115.0,90114.0,0.002]
[1765221916674,0.03648149,90115.0,90114.0,0.002]
[1765221917234,0.02049149,90115.0,90114.0,0.22394109]
[1765221917857,0.03648149,90115.0,90114.0,0.22394109]
[1765221920178,0.25842012,90115.0,90114.0,0.002]
[1765221920396,0.03648149,90115.0,90114.0,0.002]
[1765221920578,0.25842012,90115.0,90114.0,0.002]
[1765221920799,0.03648149,90115.0,90114.0,0.002]
[1765221921000,0.28122012,90115.0,90114.0,0.002]
[1765221921798,0.38492955,90115.0,90114.0,0.002]
[1765221922134,0.28122012,90115.0,90114.0,0.002]
[1765221924620,0.62642012,90115.0,90114.0,0.002]
[1765221925026,0.63669941,90115.0,90114.0,0.002]
[1765221925414,0.23310261,90090.0,90085.0,0.01110062]
[1765221925573,0.0176,90089.0,90088.0,0.23310311]
[1765221926590,0.01771634,90089.0,90088.0,0.23310311]
[1765221926773,0.01971634,90089.0,90088.0,0.23410311]
[1765221926971,0.01971634,90089.0,90088.0,0.27451449]
[1765221926972,0.00211634,90089.0,90088.0,0.27451449]
[1765221927494,0.00211634,90089.0,90088.0,0.68223748]
[1765221927851,0.00211634,90089.0,90088.0,0.70083748]
[1765221928467,0.00011634,90089.0,90088.0,0.69883748]
[1765221928693,0.00011634,90089.0,90088.0,0.67963748]
[1765221928896,0.00111634,90089.0,90088.0,0.70883748]
[1765221929122,0.00011634,90089.0,90088.0,0.70183748]
[1765221929342,0.00011634,90089.0,90088.0,0.69883748]
[1765221929489,0.00111634,90089.0,90088.0,0.30311449]
[1765221929696,0.00011634,90089.0,90088.0,0.27751449]
[1765221930097,0.00111634,90089.0,90088.0,0.28251449]
[1765221931095,0.00111634,90089.0,90088.0,0.27851449]
[1765221931451,0.00111634,90089.0,90088.0,0.28151449]
[1765221931801,0.00111634,90089.0,90088.0,0.30371449]
[1765221932606,0.0176,90106.0,90088.0,0.30371449]
[1765221932607,0.0176,90106.0,90088.0,0.67813723]
[1765221932801,0.02973834,90134.0,90128.0,0.23300195]
[1765221932971,0.01237,90149.0,90148.0,0.22185739]
[1765221933184,0.02973834,90156.0,90154.0,0.22184262]
[1765221933332,0.02683502,90157.0,90154.0,0.22184262]
[1765221933333,0.00306882,90157.0,90156.0,0.2375577]
[1765221933535,0.0034575,90157.0,90156.0,0.2375577]
[1765221934057,0.0034575,90157.0,90156.0,0.26224908]
[1765221934256,0.0034575,90157.0,90156.0,0.27075908]
[1765221934456,0.0034575,90157.0,90156.0,0.29295908]
[1765221934658,0.0034575,90157.0,90156.0,0.24678908]
[1765221934859,0.0034575,90157.0,90156.0,0.2303477]
[1765221935059,0.011092,90155.0,90151.0,0.0110925]
[1765221935373,0.011092,90155.0,90146.0,0.00851]
[1765221935374,0.01599,90151.0,90149.0,0.22185393]
[1765221935841,0.01237,90153.0,90152.0,0.22184754]
[1765221936613,0.0044575,90157.0,90156.0,0.2218377]
[1765221936813,0.00534899,90157.0,90156.0,0.2218377]
[1765221937038,0.00434899,90157.0,90155.0,0.22183995]
[1765221937242,0.01599,90156.0,90155.0,0.22183995]
[1765221937437,0.01599,90156.0,90154.0,0.01109213]
[1765221937638,0.01688149,90156.0,90154.0,0.01109213]
[1765221937840,0.01688149,90156.0,90147.0,0.22185879]
[1765221937841,0.0110925,90151.0,90147.0,0.22185879]
[1765221938040,0.01599,90149.0,90148.0,0.23294885]
[1765221938270,0.03478349,90155.0,90152.0,0.23293871]
[1765221938541,0.03478349,90155.0,90151.0,0.23294156]
[1765221938542,0.23293536,90154.0,90151.0,0.23294156]
[1765221938743,0.003,90153.0,90152.0,0.001]
[1765221938950,0.00389149,90153.0,90152.0,0.001]
[1765221939171,0.00089149,90153.0,90151.0,0.23294156]
[1765221939389,0.00089149,90153.0,90152.0,0.001]
[1765221939601,0.00089149,90153.0,90151.0,0.0110925]
[1765221940023,0.00489149,90153.0,90152.0,0.001]
[1765221940238,0.02088149,90153.0,90152.0,0.001]
[1765221940454,0.44304098,90153.0,90152.0,0.001]
[1765221940672,0.38888149,90153.0,90152.0,0.001]
[1765221941545,0.38888149,90153.0,90137.0,0.01109422]
[1765221941546,0.01109385,90140.0,90137.0,0.01109422]
[1765221941766,0.0176,90139.0,90138.0,0.221882]
[1765221942236,0.23294356,90151.0,90147.0,0.23295116]
[1765221942237,0.3340925,90151.0,90147.0,0.23295116]
[1765221942456,0.00389149,90153.0,90152.0,0.22184754]
[1765221942661,0.02149149,90153.0,90152.0,0.22184754]
[1765221943298,0.01849149,90153.0,90152.0,0.22184754]
[1765221943510,0.01849149,90153.0,90152.0,0.22284754]
[1765221943511,0.02349149,90153.0,90152.0,0.22284754]
[1765221943953,0.01849149,90153.0,90151.0,0.22184958]
[1765221944153,0.01109286,90148.0,90141.0,0.01109373]
[1765221944385,0.01109286,90148.0,90138.0,0.0110941]
[1765221944386,0.0273236,90142.0,90138.0,0.0110941]
[1765221944587,0.01623,90141.0,90139.0,0.01109397]
[1765221944824,0.01623,90141.0,90139.0,0.23297311]
[1765221945024,0.0276,90141.0,90139.0,0.23297311]
[1765221945558,0.01137,90141.0,90139.0,0.23297311]
[1765221945684,0.00189149,90153.0,90151.0,0.22185]
[1765221945890,0.01109311,90146.0,90141.0,0.22187434]
[1765221946095,0.01109311,90146.0,90142.0,0.0110936]
[1765221946291,0.02426,90145.0,90143.0,0.2218674]
[1765221946548,0.02426,90145.0,90142.0,0.23296524]
[1765221946954,0.03535323,90145.0,90142.0,0.0110936]
[1765221947197,0.002,90146.0,90143.0,0.01109348]
[1765221947383,0.002,90146.0,90145.0,0.22186477]
[1765221948130,0.0176,90152.0,90151.0,0.22185]
[1765221948447,0.00089149,90153.0,90151.0,0.22185]
[1765221948448,0.00089149,90153.0,90152.0,0.22184754]
[1765221948809,0.01849149,90153.0,90150.0,0.23294508]
[1765221949002,0.00089149,90153.0,90152.0,0.22184754]
[1765221949175,0.01849149,90153.0,90152.0,0.22184754]
[1765221949589,0.01849149,90153.0,90152.0,0.22284754]
[1765221949769,0.02249149,90153.0,90152.0,0.22284754]
[1765221950867,0.03872149,90153.0,90152.0,0.001]
[1765221951090,0.03972149,90153.0,90152.0,0.001]
[1765221951633,0.03972149,90153.0,90152.0,0.22284754]
[1765221951773,0.02349149,90153.0,90152.0,0.22284754]
[1765221952798,0.03972149,90153.0,90152.0,0.22284754]
[1765221953674,0.02349149,90153.0,90152.0,0.22284754]
[1765221954412,0.03972149,90153.0,90152.0,0.001]
[1765221954616,0.30802657,90153.0,90152.0,0.001]
[1765221955713,0.02349149,90153.0,90152.0,0.001]
[1765221956128,0.02349149,90153.0,90152.0,0.22284754]
[1765221956740,0.02349149,90153.0,90152.0,0.26278892]
[1765221956741,0.005,90153.0,90152.0,0.26278892]
[1765221958504,0.0034575,90157.0,90156.0,0.2218377]
[1765221958700,0.0034575,90157.0,90156.0,0.24668908]
[1765221958865,0.0034575,90157.0,90156.0,0.27028908]
[1765221959071,0.0034575,90157.0,90156.0,0.23106908]
[1765221959593,0.0034575,90157.0,90156.0,0.23306908]
[1765221959924,0.0034575,90157.0,90156.0,0.25168908]
[1765221959925,0.0044575,90157.0,90156.0,0.25168908]
[1765221960135,0.0044575,90157.0,90156.0,0.39720292]
[1765221960860,0.0044575,90157.0,90156.0,0.38158292]
[1765221961305,0.0034575,90157.0,90156.0,0.37658292]
[1765221961706,0.0034575,90157.0,90156.0,0.37858292]
[1765221961947,0.0034575,90157.0,90156.0,0.39320292]
[1765221962155,0.0034575,90157.0,90156.0,0.39220292]
[1765221962406,0.0044575,90157.0,90156.0,0.39220292]
[1765221962526,0.0044575,90157.0,90156.0,0.39320292]
[1765221963834,0.0044575,90157.0,90156.0,0.36907292]
[1765221964648,0.04583899,90157.0,90156.0,0.14651384]
[1765221964986,0.00534899,90157.0,90156.0,0.14651384]
[1765221965193,0.24341423,90157.0,90156.0,0.14651384]
[1765221965513,0.26767423,90157.0,90156.0,0.14651384]
[1765221965674,0.24341423,90157.0,90156.0,0.14651384]
[1765221965876,0.26758423,90157.0,90156.0,0.14651384]
[1765221966076,0.26758423,90157.0,90156.0,0.001]
[1765221966298,0.02157899,90157.0,90156.0,0.2228377]
[1765221966641,0.02157899,90157.0,90156.0,0.001]
[1765221966847,0.26758423,90157.0,90156.0,0.001]
[1765221966967,0.00534899,90157.0,90156.0,0.2228377]
[1765221967163,0.00534899,90157.0,90156.0,0.001]
[1765221967625,0.02133899,90157.0,90156.0,0.001]
[1765221968006,0.34052084,90157.0,90156.0,0.001]
[1765221968205,0.67384405,90157.0,90156.0,0.001]
[1765221968410,0.69762824,90157.0,90156.0,0.001]
[1765221968622,0.0222,90124.0,90123.0,0.23301291]
[1765221968825,0.0176,90128.0,90127.0,0.22190908]
[1765221969734,0.01771656,90128.0,90127.0,0.22190908]
[1765221971079,0.00211656,90128.0,90127.0,0.26436046]
[1765221974905,0.00211656,90128.0,90127.0,0.24007046]
[1765221975669,0.00211656,90128.0,90127.0,0.22363046]
[1765221977279,0.04100656,90128.0,90127.0,0.22290908]
[1765221978252,0.04100656,90128.0,90127.0,0.001]
[1765221978253,0.26291318,90128.0,90127.0,0.001]
[1765221978980,0.28051318,90128.0,90127.0,0.001]
[1765221979179,0.05860656,90128.0,90127.0,0.22290908]
[1765221979483,0.01971656,90128.0,90127.0,0.22290908]
[1765221979719,0.03507656,90128.0,90127.0,0.22290908]
[1765221980707,0.03507656,90128.0,90127.0,0.001]
[1765221981124,0.03507656,90128.0,90127.0,0.22290908]
[1765221981329,0.03507656,90128.0,90127.0,0.001]
[1765221981491,0.05860656,90128.0,90127.0,0.001]
[1765221982092,0.28051318,90128.0,90127.0,0.001]
[1765221982442,0.30271318,90128.0,90127.0,0.001]
[1765221983722,0.08080656,90128.0,90127.0,0.001]
[1765221984124,0.08080656,90128.0,90127.0,0.22290908]
[1765221984851,0.08080656,90128.0,90127.0,0.001]
[1765221985087,0.30271318,90128.0,90127.0,0.001]
[1765221985300,0.01747656,90128.0,90127.0,0.001]
[1765221985499,0.00211656,90128.0,90127.0,0.28611136]
[1765221985701,0.00211656,90128.0,90127.0,0.26392046]
[1765221986988,0.00011656,90128.0,90127.0,0.26392046]
[1765221987136,0.00111656,90128.0,90127.0,0.26592046]
[1765221987539,0.00111656,90128.0,90127.0,0.4114343]
[1765221988761,0.00111656,90128.0,90127.0,0.4104343]
[1765221988966,0.00011656,90128.0,90127.0,0.4104343]
[1765221989273,0.00011656,90128.0,90127.0,0.4300343]
[1765221989474,0.00011656,90128.0,90127.0,0.4260343]
[1765221989845,0.00011656,90128.0,90127.0,0.4562343]
[1765221989846,0.00111656,90128.0,90127.0,0.4562343]
[1765221990543,0.00111656,90128.0,90127.0,0.3915043]
[1765221990948,0.00111656,90128.0,90127.0,0.4164343]
[1765221993547,0.00111656,90128.0,90127.0,0.3761443]
[1765221994592,0.00111656,90128.0,90127.0,0.4164343]
[1765221994796,0.00111656,90128.0,90127.0,0.47895729]
[1765221995911,0.00111656,90128.0,90127.0,0.82415729]
[1765221996149,0.00306882,90157.0,90156.0,0.2218377]
[1765221996359,0.00345718,90157.0,90156.0,0.24642908]
[1765221996570,0.00345718,90157.0,90156.0,0.29355908]
[1765221996804,0.00345718,90157.0,90156.0,0.27135908]
[1765221997444,0.00545718,90157.0,90156.0,0.24642908]
[1765221997867,0.00545718,90157.0,90156.0,0.23106908]
[1765221997868,0.00645718,90157.0,90156.0,0.23106908]
[1765221998068,0.00645718,90157.0,90156.0,0.24642908]
[1765221998450,0.00545718,90157.0,90156.0,0.24642908]
[1765221998676,0.00345718,90157.0,90156.0,0.24842908]
[1765221998877,0.00345718,90157.0,90156.0,0.24942908]
[1765221999129,0.00345718,90157.0,90156.0,0.24742908]
[1765221999302,0.00345718,90157.0,90156.0,0.23206908]
[1765221999483,0.04234718,90157.0,90156.0,0.2218377]
[1765221999892,0.01881718,90157.0,90156.0,0.2218377]
[1765222000285,0.01981718,90157.0,90156.0,0.2218377]
[1765222000699,0.04423867,90157.0,90156.0,0.2218377]
[1765222002497,0.04423867,90157.0,90155.0,0.22184016]
[1765222002680,0.00534867,90157.0,90156.0,0.2218377]
[1765222003103,0.02124867,90157.0,90156.0,0.2218377]
[1765222003543,0.04552867,90157.0,90156.0,0.2218377]
[1765222004199,0.011092,90155.0,90151.0,0.15660634]
[1765222004399,0.0159,90152.0,90151.0,0.37845634]
[1765222004804,0.04018,90152.0,90151.0,0.37845634]
[1765222005230,0.0516,90152.0,90151.0,0.14551384]
[1765222005785,0.27344754,90152.0,90151.0,0.14651384]
[1765222005990,0.27444754,90152.0,90151.0,0.14551384]
[1765222006210,0.0748,90152.0,90151.0,0.14551384]
[1765222006413,0.0586,90152.0,90151.0,0.36736384]
[1765222006581,0.0808,90152.0,90151.0,0.36736384]
[1765222006787,0.0586,90152.0,90151.0,0.14551384]
[1765222006984,0.0586,90152.0,90151.0,0.36736384]
[1765222007318,0.007,90152.0,90151.0,0.38424522]
[1765222007525,0.007,90152.0,90151.0,0.28509138]
[1765222007730,0.007,90152.0,90151.0,0.60809138]
[1765222007935,0.006,90152.0,90151.0,0.60809138]
[1765222008217,0.007,90152.0,90151.0,0.60809138]
[1765222008360,0.001,90152.0,90151.0,0.60809138]
[1765222008556,0.007,90152.0,90151.0,0.60809138]
[1765222008761,0.006,90152.0,90151.0,0.60809138]
[1765222008997,0.00345718,90157.0,90156.0,0.2218377]
[1765222009309,0.00345718,90157.0,90156.0,0.23871908]
[1765222009614,0.00345718,90157.0,90156.0,0.26287908]
[1765222010112,0.00345718,90157.0,90156.0,0.23871908]
[1765222010613,0.00345718,90157.0,90156.0,0.23971908]
[1765222012097,0.00345718,90157.0,90156.0,0.26387908]
[1765222012494,0.00345718,90157.0,90156.0,0.23971908]
[1765222013140,0.00345718,90157.0,90156.0,0.26387908]
[1765222014305,0.0004,90180.0,90159.0,0.62955331]
[1765222014522,0.0004,90180.0,90179.0,0.22178112]
[1765222014754,0.0004,90180.0,90179.0,0.2386625]
[1765222014755,0.00051648,90180.0,90179.0,0.2386625]
[1765222014960,0.00051648,90180.0,90179.0,0.2628225]
[1765222015390,0.00051648,90180.0,90179.0,0.2386625]
[1765222015566,0.00051648,90180.0,90179.0,0.2225025]
[1765222015767,0.02783648,90180.0,90179.0,0.2225025]
[1765222015993,0.05211648,90180.0,90179.0,0.2225025]
[1765222016114,0.02883648,90180.0,90179.0,0.2225025]
[1765222016311,0.02783648,90180.0,90179.0,0.2225025]
[1765222016724,0.03083648,90180.0,90179.0,0.2225025]
[1765222017290,0.27778663,90180.0,90179.0,0.001]
[1765222017521,0.29998663,90180.0,90179.0,0.001]
[1765222017774,0.07820797,90180.0,90178.0,0.22178344]
[1765222017978,0.07820797,90180.0,90179.0,0.22178112]
[1765222017979,0.03502797,90180.0,90179.0,0.22178112]
[1765222018099,0.03502797,90180.0,90178.0,0.2217834]
[1765222018298,0.01682797,90180.0,90179.0,0.22178112]
[1765222018736,0.03272797,90180.0,90179.0,0.22178112]
[1765222018948,0.02872797,90180.0,90179.0,0.22178112]
[1765222019152,0.05300797,90180.0,90179.0,0.22178112]
[1765222019314,0.05700797,90180.0,90179.0,0.22178112]
[1765222019510,0.05300797,90180.0,90179.0,0.22178112]
[1765222019715,0.00140797,90180.0,90179.0,0.22178112]
[1765222019917,0.00451648,90180.0,90179.0,0.2386625]
[1765222020163,0.00520395,90180.0,90179.0,0.2386625]
[1765222020364,0.00520395,90180.0,90179.0,0.2620225]
[1765222020768,0.00520395,90180.0,90179.0,0.32454549]
[1765222021120,0.00120395,90180.0,90179.0,0.2225025]
[1765222021329,0.00120395,90180.0,90179.0,0.2245025]
[1765222021330,0.00420395,90180.0,90179.0,0.2245025]
[1765222021736,0.00120395,90180.0,90179.0,0.2245025]
[1765222021923,0.00120395,90180.0,90179.0,0.2235025]
[1765222022495,0.00120395,90180.0,90179.0,0.2225025]
[1765222022652,0.00320395,90180.0,90179.0,0.2225025]
[1765222022821,0.00320395,90180.0,90179.0,0.2378825]
[1765222024389,0.00320395,90180.0,90179.0,0.68656549]
[1765222024598,0.0004,90200.0,90189.0,0.60727952]
[1765222024807,0.0004,90200.0,90199.0,0.60725493]
[1765222025037,0.0004,90200.0,90199.0,0.64095631]
[1765222025231,0.0004,90200.0,90199.0,0.68651631]
[1765222025931,0.00076863,90200.0,90199.0,0.68651631]
[1765222026855,0.00076863,90200.0,90199.0,0.54745332]
[1765222027049,0.00076863,90200.0,90199.0,0.56505332]
[1765222027416,0.00076863,90200.0,90199.0,0.56805332]
[1765222027611,0.00076863,90200.0,90199.0,0.56305332]
[1765222027817,0.00076863,90200.0,90199.0,0.60179332]
[1765222028018,0.00076863,90200.0,90199.0,0.68851631]
[1765222028841,0.00076863,90200.0,90199.0,0.68751631]
[1765222029055,0.00076863,90200.0,90199.0,0.69051631]
[1765222029572,0.00076863,90200.0,90199.0,0.68951631]
[1765222029932,0.00076863,90200.0,90199.0,0.69151631]
[1765222030332,0.00076863,90200.0,90199.0,0.64095631]
[1765222030568,0.00076863,90200.0,90199.0,0.66406084]
[1765222030718,0.00076863,90200.0,90199.0,0.66706084]
[1765222030916,0.00076863,90200.0,90199.0,0.68926084]
[1765222031317,0.00076863,90200.0,90199.0,0.66706084]
[1765222031663,0.00076863,90200.0,90199.0,0.873487]
[1765222032141,0.00076863,90200.0,90199.0,0.83477468]
[1765222032991,0.00076863,90200.0,90199.0,0.83377468]
[1765222033528,1e-08,90200.0,90199.0,0.83377468]
[1765222033732,1e-08,90200.0,90199.0,1.25410268]
[1765222033937,1e-08,90200.0,90199.0,1.10858884]
[1765222035056,1e-08,90200.0,90199.0,1.10558884]
[1765222035262,1e-08,90200.0,90199.0,1.11002726]
[1765222035478,0.0004,90240.0,90209.0,0.62943035]
[1765222035636,0.00051642,90210.0,90209.0,0.64654173]
[1765222035840,1e-08,90210.0,90209.0,0.68898173]
[1765222036504,1e-08,90220.0,90219.0,0.64579578]
[1765222036707,1e-08,90220.0,90219.0,0.66411716]
[1765222037024,1e-08,90220.0,90219.0,0.68895716]
[1765222037968,1e-08,90220.0,90219.0,0.68995716]
[1765222038807,0.0004,90240.0,90219.0,0.68995716]
[1765222038808,1e-08,90230.0,90229.0,0.65428121]
[1765222039013,1e-08,90230.0,90229.0,0.67260259]
[1765222039197,1e-08,90230.0,90229.0,0.69744259]
[1765222040299,1e-08,90230.0,90229.0,0.67984259]
[1765222040514,1e-08,90230.0,90229.0,0.70744259]
[1765222040717,1e-08,90230.0,90229.0,0.69744259]
[1765222040922,1e-08,90230.0,90229.0,0.84395643]
[1765222041727,1e-08,90230.0,90229.0,0.84495643]
[1765222042091,1e-08,90230.0,90229.0,0.84395643]
[1765222042296,0.00089601,90230.0,90229.0,0.82735643]
[1765222042500,0.00089601,90230.0,90229.0,0.84495643]